bitfinex/quotes_SOLUSD_20230116
["timestamp","ask_amount","ask_price","bid_price","bid_amount"]
[1673854978327,20.0,24.364,24.348,20.0]
[1673854978523,20.0,24.364,24.349,17.0]
[1673854978727,20.0,24.364,24.35,20.0]
[1673854978949,20.0,24.364,24.351,17.0]
[1673854979157,20.0,24.364,24.352,20.0]
[1673854979479,20.0,24.364,24.353,17.0]
[1673854979691,20.0,24.364,24.354,20.0]
[1673854980013,20.0,24.364,24.34,21.31]
[1673854980222,20.0,24.364,24.341,17.0]
[1673854980547,20.0,24.364,24.34,21.31]
[1673854980730,20.0,24.368,24.34,21.31]
[1673854980942,20.0,24.368,24.35,21.46]
[1673854981693,20.0,24.368,24.351,20.0]
[1673854981908,20.0,24.368,24.352,17.0]
[1673854982219,20.0,24.368,24.35,21.46]
[1673854982433,20.0,24.366,24.34,21.31]
[1673854982848,20.0,24.364,24.34,21.31]
[1673854984333,20.0,24.364,24.341,20.0]
[1673854984849,20.0,24.364,24.343,20.0]
[1673854985064,20.0,24.364,24.345,20.0]
[1673854985378,112.2527,24.373,24.35,21.46]
[1673854985586,112.2527,24.373,24.351,20.0]
[1673854985791,112.2527,24.373,24.352,17.0]
[1673854986199,20.0,24.372,24.353,40.0]
[1673854986429,20.0,24.372,24.354,17.0]
[1673854986861,20.0,24.372,24.355,20.0]
[1673854987049,20.0,24.372,24.356,17.0]
[1673854988945,112.2527,24.373,24.356,17.0]
[1673854989145,20.0,24.372,24.356,17.0]
[1673854990948,20.0,24.372,24.355,20.0]
[1673854991154,20.0,24.372,24.351,20.0]
[1673854993234,91.0727,24.373,24.351,20.0]
[1673854993452,20.0,24.372,24.351,20.0]
[1673854994219,20.0,24.372,24.353,20.0]
[1673854994400,20.0,24.372,24.354,17.0]
[1673854994834,20.0,24.372,24.355,20.0]
[1673854995040,20.0,24.372,24.356,17.0]
[1673854995260,21.46196354,24.371,24.356,17.0]
[1673854995680,20.0,24.37,24.355,20.0]
[1673854995885,20.0,24.37,24.351,20.0]
[1673854996218,20.0,24.369,24.34,21.45]
[1673854996520,20.0,24.368,24.34,21.45]
[1673854997356,21.46196354,24.367,24.34,21.45]
[1673854997566,20.0,24.366,24.341,20.0]
[1673854997766,20.0,24.366,24.342,20.0]
[1673854997989,41.46196354,24.366,24.341,20.0]
[1673854998627,20.0,24.366,24.341,20.0]
[1673854998839,20.0,24.366,24.342,17.0]
[1673854999154,20.0,24.366,24.343,20.0]
[1673854999470,20.0,24.366,24.344,17.0]
[1673854999864,20.0,24.366,24.345,20.0]
[1673855000087,20.0,24.366,24.346,17.0]
[1673855000718,20.0,24.366,24.345,20.0]
[1673855000914,20.0,24.364,24.33,21.45]
[1673855001125,21.32,24.36,24.323,20.0]
[1673855001350,156.6869,24.359,24.328,11.36393811]
[1673855001548,218.09321135,24.359,24.323,20.0]
[1673855001765,196.63124781,24.359,24.326,11.36393811]
[1673855001972,20.0,24.358,24.326,11.36393811]
[1673855002497,20.0,24.358,24.328,20.0]
[1673855002727,20.0,24.358,24.329,17.0]
[1673855002922,20.0,24.358,24.33,20.0]
[1673855003148,20.0,24.358,24.331,17.0]
[1673855003339,20.0,24.358,24.331,28.36393811]
[1673855003774,20.0,24.358,24.332,11.36393811]
[1673855003993,20.0,24.358,24.333,17.0]
[1673855004803,20.0,24.358,24.334,20.0]
[1673855005014,20.0,24.358,24.335,17.0]
[1673855005646,20.0,24.358,24.334,20.0]
[1673855005855,20.0,24.358,24.333,20.0]
[1673855006273,20.0,24.356,24.333,20.0]
[1673855007854,20.0,24.356,24.334,17.0]
[1673855008066,20.0,24.356,24.335,20.0]
[1673855008382,20.0,24.356,24.336,17.0]
[1673855010797,21.32,24.35,24.335,20.0]
[1673855011013,21.32,24.35,24.307,40.82]
[1673855011223,171.75456354,24.349,24.304,20.0]
[1673855011643,41.46196354,24.348,24.304,20.0]
[1673855011858,17.0,24.347,24.304,20.0]
[1673855012070,20.0,24.346,24.305,40.82]
[1673855012494,20.0,24.346,24.306,20.0]
[1673855013320,20.0,24.346,24.321,17.0]
[1673855013741,20.0,24.346,24.322,20.0]
[1673855014265,20.0,24.346,24.321,20.0]
[1673855014266,20.0,24.344,24.321,20.0]
[1673855014478,20.0,24.343,24.318,11.36393811]
[1673855014689,21.31,24.33,24.289,113.5258]
[1673855014902,21.45,24.32,24.291,20.0]
[1673855015113,20.0,24.319,24.291,20.0]
[1673855015328,41.46196354,24.319,24.291,20.0]
[1673855015653,21.46196354,24.318,24.291,20.0]
[1673855015841,20.0,24.317,24.291,20.0]
[1673855016048,20.0,24.319,24.291,20.0]
[1673855016468,20.0,24.324,24.291,20.0]
[1673855016691,20.0,24.323,24.291,20.0]
[1673855016894,20.0,24.322,24.291,20.0]
[1673855017113,20.0,24.321,24.291,20.0]
[1673855017730,20.0,24.321,24.293,20.0]
[1673855017940,20.0,24.321,24.294,17.0]
[1673855018154,20.0,24.322,24.295,20.0]
[1673855018371,21.46196354,24.321,24.295,20.0]
[1673855018697,20.0,24.32,24.291,20.0]
[1673855019096,21.46196354,24.319,24.291,20.0]
[1673855019512,20.0,24.318,24.29,41.38]
[1673855019723,20.0,24.317,24.29,41.38]
[1673855019932,62.92392708,24.317,24.28,21.47]
[1673855020152,20.0,24.315,24.283,20.0]
[1673855020584,21.46196354,24.314,24.283,20.0]
[1673855020793,20.0,24.313,24.283,20.0]
[1673855021196,20.0,24.313,24.285,20.0]
[1673855021403,20.0,24.313,24.287,20.0]
[1673855021633,20.0,24.313,24.288,20.0]
[1673855022054,20.0,24.313,24.289,17.0]
[1673855022275,20.0,24.313,24.29,20.0]
[1673855022685,20.0,24.309,24.27,21.4]
[1673855022911,20.0,24.309,24.273,111.8405]
[1673855023103,20.0,24.307,24.274,20.0]
[1673855023642,20.0,24.305,24.273,111.8405]
[1673855023864,20.0,24.305,24.27,37.873944]
[1673855024053,41.46196354,24.304,24.271,20.0]
[1673855024262,20.0,24.307,24.271,20.0]
[1673855024591,41.46196354,24.307,24.28,21.45]
[1673855025313,41.46196354,24.307,24.281,17.0]
[1673855025857,20.0,24.307,24.28,21.45]
[1673855026172,20.0,24.305,24.281,20.0]
[1673855026795,21.46196354,24.304,24.281,20.0]
[1673855027001,20.0,24.303,24.281,20.0]
[1673855027424,21.46196354,24.302,24.281,20.0]
[1673855027632,20.0,24.301,24.272,21.99353]
[1673855028044,20.0,24.301,24.273,17.0]
[1673855028265,20.0,24.303,24.28,21.45]
[1673855028586,20.0,24.303,24.281,37.0]
[1673855029211,41.46196354,24.303,24.281,37.0]
[1673855029744,20.0,24.303,24.281,37.0]
[1673855030787,20.0,24.303,24.281,60.61235443]
[1673855030995,41.46196354,24.303,24.281,37.0]
[1673855031841,20.0,24.303,24.281,37.0]
[1673855032246,20.0,24.307,24.281,37.0]
[1673855032457,20.0,24.308,24.281,37.0]
[1673855032664,20.0,24.308,24.282,20.0]
[1673855032883,20.0,24.308,24.284,20.0]
[1673855033095,20.0,24.308,24.283,37.0]
[1673855033096,20.0,24.308,24.285,37.0]
[1673855033306,41.46196354,24.308,24.283,52.78298815]
[1673855033529,41.46196354,24.308,24.28,21.45]
[1673855035305,41.46196354,24.308,24.281,17.0]
[1673855035518,41.46196354,24.308,24.283,20.0]
[1673855035731,41.46196354,24.308,24.284,17.0]
[1673855036145,41.46196354,24.308,24.283,17.0]
[1673855036773,41.46196354,24.308,24.281,37.86298815]
[1673855036982,20.0,24.307,24.281,37.86298815]
[1673855037205,20.0,24.306,24.274,20.0]
[1673855037415,20.0,24.305,24.27,37.923944]
[1673855037635,20.0,24.304,24.28,23.12]
[1673855037948,20.0,24.303,24.28,23.12]
[1673855038138,20.0,24.304,24.28,23.12]
[1673855038345,41.46196354,24.304,24.28,23.12]
[1673855038554,21.46196354,24.304,24.28,23.12]
[1673855038776,110.5147,24.31,24.28,23.12]
[1673855038975,20.0,24.308,24.29,23.1]
[1673855039189,20.0,24.308,24.291,20.0]
[1673855039401,20.0,24.308,24.29,23.1]
[1673855039402,20.0,24.308,24.292,17.0]
[1673855039620,41.46196354,24.308,24.291,17.0]
[1673855040584,20.0,24.306,24.291,17.0]
[1673855041732,110.5147,24.31,24.292,20.0]
[1673855041931,110.5147,24.31,24.293,17.0]
[1673855042471,20.0,24.309,24.293,17.0]
[1673855043195,20.0,24.309,24.292,20.0]
[1673855043399,20.0,24.307,24.291,20.0]
[1673855043610,20.0,24.307,24.283,20.0]
[1673855043820,20.0,24.307,24.29,23.1]
[1673855044040,110.5147,24.31,24.291,20.0]
[1673855044255,20.0,24.309,24.291,20.0]
[1673855044577,20.0,24.309,24.292,17.0]
[1673855044897,20.0,24.309,24.293,20.0]
[1673855045096,20.0,24.309,24.294,17.0]
[1673855045305,20.0,24.309,24.293,20.0]
[1673855045613,20.0,24.309,24.29,23.1]
[1673855045614,20.0,24.307,24.28,23.12]
[1673855046037,41.46196354,24.307,24.28,23.12]
[1673855046885,20.0,24.307,24.281,20.0]
[1673855047499,41.46196354,24.307,24.282,17.0]
[1673855048335,41.46196354,24.307,24.28,23.12]
[1673855048545,41.46196354,24.307,24.275,44.9990211]
[1673855048792,23.09,24.3,24.275,24.9990211]
[1673855048972,23.09,24.3,24.27,39.593944]
[1673855049303,20.0,24.298,24.271,20.0]
[1673855049515,116.3881,24.297,24.271,20.0]
[1673855049709,20.0,24.296,24.271,20.0]
[1673855050122,20.0,24.296,24.27,39.593944]
[1673855050337,20.0,24.294,24.27,39.593944]
[1673855050776,21.46196354,24.293,24.27,39.593944]
[1673855051090,20.0,24.292,24.27,23.12]
[1673855051496,20.0,24.292,24.26,23.22]
[1673855051709,41.46196354,24.292,24.268,16.482417]
[1673855051909,41.46196354,24.292,24.269,1.45276228]
[1673855052121,41.46196354,24.292,24.269,1.45270242]
[1673855052122,23.08,24.29,24.269,1.45270242]
[1673855052335,20.0,24.288,24.269,1.45270242]
[1673855052764,21.46196354,24.287,24.269,1.45270242]
[1673855053169,23.09,24.28,24.25,23.08]
[1673855053383,20.0,24.279,24.25,23.08]
[1673855053614,58.46196354,24.279,24.24,23.34]
[1673855053817,23.08,24.27,24.24,23.34]
[1673855054035,23.12,24.26,24.245,16.495733]
[1673855054225,20.0,24.258,24.221,69.70078803]
[1673855054432,23.08,24.25,24.221,69.70078803]
[1673855054640,20.0,24.258,24.212,69.86458714]
[1673855054641,20.0,24.249,24.212,69.86458714]
[1673855054857,23.12,24.23,24.212,69.86458714]
[1673855055084,23.12,24.23,24.217,16.513232]
[1673855055329,23.12,24.23,24.211,0.003756]
[1673855055330,20.0,24.228,24.211,0.003756]
[1673855055635,20.0,24.228,24.184,7.576076]
[1673855055636,23.44890354,24.227,24.184,7.576076]
[1673855055838,1.98694,24.226,24.184,7.576076]
[1673855056054,16.513232,24.217,24.184,7.576076]
[1673855056251,37.0,24.216,24.155,102.23692322]
[1673855056470,321.81113953,24.216,24.156,2.0031]
[1673855056674,187.52891417,24.214,24.156,2.0031]
[1673855056896,37.0,24.213,24.156,2.0031]
[1673855057086,181.02408941,24.21,24.13,20.0]
[1673855057296,181.02408941,24.21,24.119,103.363756]
[1673855057297,185.80911117,24.206,24.145,16.554222]
[1673855057529,181.9281292,24.203,24.145,0.004222]
[1673855057719,182.31897645,24.2,24.145,0.004222]
[1673855057931,1.98694,24.198,24.145,0.004222]
[1673855058147,1.98694,24.198,24.146,10.10070062]
[1673855058361,20.0,24.197,24.145,0.004222]
[1673855058574,20.0,24.195,24.145,0.004222]
[1673855058888,18.98694,24.194,24.145,0.004222]
[1673855059104,1.98694,24.192,24.145,0.004222]
[1673855059299,20.0,24.191,24.145,0.004222]
[1673855059499,1.98694,24.19,24.145,0.004222]
[1673855059727,18.98694,24.19,24.146,10.10070062]
[1673855059924,20.0,24.189,24.145,0.004222]
[1673855060140,1.98694,24.19,24.146,10.10070062]
[1673855060353,76.30570803,24.239,24.147,22.00385]
[1673855060571,115.7758,24.214,24.148,2.00377]
[1673855060789,21.46196354,24.212,24.148,12.10447062]
[1673855060974,40.91454354,24.209,24.149,30.10070062]
[1673855061183,20.0,24.205,24.151,20.0]
[1673855061398,21.46196354,24.212,24.152,39.00344]
[1673855061610,115.7758,24.227,24.154,2.00327]
[1673855061842,21.46196354,24.222,24.155,20.0]
[1673855062027,20.0,24.226,24.156,108.15810646]
[1673855062245,21.46196354,24.221,24.159,69.88443365]
[1673855062449,21.46196354,24.218,24.16,39.00277]
[1673855062782,21.46196354,24.218,24.161,12.10339062]
[1673855062984,20.0,24.226,24.162,108.39905104]
[1673855063192,20.0,24.226,24.164,20.0]
[1673855063403,20.0,24.226,24.166,2.00227]
[1673855063604,20.0,24.226,24.166,0.50227]
[1673855063819,109.1151,24.232,24.167,86.39241516]
[1673855064035,109.1151,24.232,24.168,39.00211]
[1673855064363,109.1151,24.232,24.169,22.00203]
[1673855064567,109.1151,24.232,24.171,20.0]
[1673855064568,20.0,24.231,24.171,20.0]
[1673855064885,109.1151,24.232,24.172,108.66768784]
[1673855065077,20.0,24.231,24.173,22.0017]
[1673855065288,20.0,24.231,24.174,39.00161]
[1673855065513,21.46196354,24.23,24.176,20.0]
[1673855065725,1.98694,24.229,24.177,20.0]
[1673855065914,21.46196354,24.23,24.177,22.00136]
[1673855066129,20.0,24.229,24.178,22.00128]
[1673855066338,20.0,24.229,24.179,22.0012]
[1673855066560,20.0,24.229,24.18,20.0]
[1673855066759,20.0,24.229,24.182,20.0]
[1673855066974,20.0,24.231,24.182,20.0]
[1673855067179,109.1151,24.232,24.184,20.0]
[1673855067413,20.0,24.231,24.186,20.0]
[1673855067621,20.0,24.231,24.187,20.0]
[1673855067838,20.0,24.231,24.188,37.0]
[1673855068154,20.0,24.231,24.185,39.9509736]
[1673855068155,41.46196354,24.231,24.185,10.10070062]
[1673855068356,1.98694,24.23,24.185,10.10070062]
[1673855068570,46.88093954,24.23,24.185,10.10070062]
[1673855068756,41.46196354,24.229,24.177,20.0]
[1673855068971,1.98694,24.228,24.176,20.0]
[1673855069191,20.0,24.227,24.179,10.10070062]
[1673855069410,1.98694,24.226,24.179,10.10070062]
[1673855069604,20.0,24.227,24.18,20.0]
[1673855069937,1.98694,24.226,24.18,20.0]
[1673855070143,20.0,24.225,24.181,10.10070062]
[1673855070456,1.98694,24.224,24.181,10.10070062]
[1673855070662,20.0,24.225,24.183,20.0]
[1673855071070,20.0,24.225,24.184,10.10070062]
[1673855071288,20.0,24.225,24.185,37.0]
[1673855071713,20.0,24.225,24.186,10.10070062]
[1673855071930,20.0,24.225,24.187,40.0]
[1673855072121,20.0,24.229,24.189,20.0]
[1673855072329,19.79292,24.229,24.19,37.0]
[1673855072538,19.79292,24.229,24.19,47.10070062]
[1673855072748,19.58584,24.229,24.191,10.10070062]
[1673855072980,19.58584,24.229,24.192,57.0]
[1673855073191,19.37876,24.229,24.192,40.0]
[1673855073722,19.37876,24.229,24.192,20.0]
[1673855073931,19.37876,24.229,24.191,20.0]
[1673855074333,21.46196354,24.228,24.191,20.0]
[1673855074562,23.44890354,24.228,24.191,20.0]
[1673855074875,20.0,24.227,24.186,10.10070062]
[1673855075198,1.98694,24.226,24.186,10.10070062]
[1673855076643,1.98694,24.226,24.187,20.0]
[1673855076850,23.44890354,24.226,24.187,20.0]
[1673855077074,38.98694,24.225,24.166,20.0]
[1673855077278,21.98694,24.224,24.166,20.0]
[1673855077497,1.98694,24.223,24.173,10.10070062]
[1673855077702,20.0,24.222,24.173,10.10070062]
[1673855078030,38.98694,24.221,24.153,20.0]
[1673855078221,1.98694,24.219,24.153,20.0]
[1673855078425,20.0,24.218,24.153,30.10070062]
[1673855078645,21.98694,24.217,24.154,10.10070062]
[1673855078852,20.0,24.215,24.154,10.10070062]
[1673855079180,21.98694,24.214,24.155,20.0]
[1673855079499,20.0,24.212,24.156,10.10070062]
[1673855079716,20.0,24.211,24.156,10.10070062]
[1673855080028,21.98694,24.21,24.156,10.10070062]
[1673855080347,38.98694,24.209,24.156,10.10070062]
[1673855080653,20.0,24.207,24.156,10.10070062]
[1673855080870,1.98694,24.206,24.156,10.10070062]
[1673855081584,23.44890354,24.206,24.157,20.0]
[1673855081799,20.0,24.205,24.158,20.0]
[1673855082018,1.98694,24.204,24.159,20.0]
[1673855082235,23.44890354,24.204,24.153,20.0]
[1673855082416,21.46196354,24.203,24.153,20.0]
[1673855082627,1.98694,24.202,24.154,10.10070062]
[1673855083574,23.44890354,24.202,24.154,10.10070062]
[1673855083790,20.0,24.201,24.156,20.0]
[1673855084027,21.98694,24.201,24.156,20.0]
[1673855084417,21.98694,24.201,24.157,10.10070062]
[1673855085150,20.0,24.201,24.17,21.57]
[1673855085363,20.0,24.203,24.171,37.0]
[1673855085780,23.44890354,24.202,24.171,20.0]
[1673855085994,21.98694,24.201,24.171,20.0]
[1673855086201,21.98694,24.201,24.16,21.55]
[1673855086202,23.68694,24.2,24.16,21.55]
[1673855086437,1.98694,24.199,24.16,21.55]
[1673855086626,20.0,24.198,24.16,21.55]
[1673855086831,21.71,24.19,24.16,21.55]
[1673855087046,1.98694,24.189,24.151,30.10070062]
[1673855087467,20.0,24.188,24.152,10.10070062]
[1673855087990,20.0,24.189,24.161,20.0]
[1673855088319,21.73,24.19,24.15,21.76]
[1673855088537,23.44890354,24.188,24.15,21.76]
[1673855088844,20.0,24.186,24.15,21.76]
[1673855089062,21.63,24.18,24.146,16.554736]
[1673855089286,1.98694,24.179,24.146,16.554736]
[1673855089483,23.44890354,24.179,24.146,16.554736]
[1673855089689,1.98694,24.179,24.15,21.76]
[1673855089895,119.7467,24.18,24.151,20.0]
[1673855090111,119.7467,24.18,24.15,21.76]
[1673855090316,20.0,24.178,24.15,21.76]
[1673855090734,41.46196354,24.178,24.146,16.554736]
[1673855090949,1.98694,24.177,24.146,16.554736]
[1673855091366,23.44890354,24.177,24.151,20.0]
[1673855091698,20.0,24.179,24.151,20.0]
[1673855092321,20.0,24.179,24.152,17.0]
[1673855092646,119.7467,24.18,24.16,21.76]
[1673855092858,119.7467,24.18,24.161,57.0]
[1673855093073,20.0,24.185,24.161,37.0]
[1673855093784,20.0,24.186,24.161,37.0]
[1673855093993,20.0,24.186,24.162,20.0]
[1673855094213,20.0,24.186,24.163,37.0]
[1673855094623,20.0,24.187,24.164,20.0]
[1673855094843,20.0,24.195,24.166,20.0]
[1673855095058,20.0,24.195,24.167,37.0]
[1673855095480,55.21599954,24.194,24.167,37.0]
[1673855095692,131.9798,24.193,24.168,20.0]
[1673855095897,111.9798,24.193,24.169,37.0]
[1673855096122,111.9798,24.193,24.17,41.64]
[1673855096308,20.0,24.192,24.171,17.0]
[1673855096518,20.0,24.192,24.172,20.0]
[1673855096742,20.0,24.192,24.173,17.0]
[1673855097288,20.0,24.192,24.174,20.0]
[1673855097461,20.0,24.192,24.175,17.0]
[1673855097677,111.9798,24.193,24.176,20.0]
[1673855097893,20.0,24.204,24.177,17.0]
[1673855098317,20.0,24.204,24.178,20.0]
[1673855098523,21.46196354,24.203,24.178,20.0]
[1673855098740,20.0,24.202,24.179,17.0]
[1673855099158,20.0,24.202,24.178,20.0]
[1673855099486,1.98694,24.201,24.171,20.0]
[1673855100436,1.98694,24.201,24.172,17.0]
[1673855100646,20.0,24.202,24.174,20.0]
[1673855100854,20.0,24.205,24.174,20.0]
[1673855100855,20.0,24.205,24.175,17.0]
[1673855101262,20.0,24.205,24.177,20.0]
[1673855101472,20.0,24.205,24.178,17.0]
[1673855101674,20.0,24.205,24.18,20.0]
[1673855101889,20.0,24.205,24.181,17.0]
[1673855102108,20.0,24.205,24.182,20.0]
[1673855102324,20.0,24.205,24.183,17.0]
[1673855102514,20.0,24.208,24.183,17.0]
[1673855102723,20.0,24.21,24.184,20.0]
[1673855102934,139.825,24.229,24.19,19.44]
[1673855103147,139.825,24.229,24.184,77.02045392]
[1673855103148,20.0,24.213,24.184,20.0]
[1673855103356,20.0,24.213,24.16,77.77]
[1673855103357,21.46196354,24.209,24.17,19.44]
[1673855103579,21.46196354,24.209,24.172,20.0]
[1673855103781,20.0,24.208,24.17,19.44]
[1673855103989,1.98694,24.207,24.17,19.44]
[1673855104199,23.44890354,24.207,24.16,19.44]
[1673855104413,23.44890354,24.207,24.153,20.0]
[1673855104414,19.44,24.2,24.153,20.0]
[1673855104619,1.98694,24.199,24.153,20.0]
[1673855104840,20.0,24.198,24.153,20.0]
[1673855105044,21.98694,24.197,24.153,20.0]
[1673855105258,1.98694,24.196,24.15,19.43]
[1673855105472,52.59784994,24.196,24.16,19.44]
[1673855105685,72.59784994,24.196,24.161,20.0]
[1673855106109,21.46196354,24.195,24.161,20.0]
[1673855106319,21.98694,24.196,24.162,20.0]
[1673855106505,21.98694,24.196,24.17,19.44]
[1673855106506,20.0,24.196,24.17,19.44]
[1673855106719,20.0,24.196,24.171,20.0]
[1673855107143,115.827,24.197,24.171,20.0]
[1673855107579,20.0,24.205,24.172,20.0]
[1673855108203,20.0,24.205,24.171,20.0]
[1673855108397,20.0,24.203,24.172,17.0]
[1673855108608,20.0,24.203,24.173,20.0]
[1673855108829,23.44890354,24.202,24.174,17.0]
[1673855109249,20.0,24.201,24.175,20.0]
[1673855109476,43.44890354,24.201,24.17,19.44]
[1673855109691,23.44890354,24.2,24.17,19.44]
[1673855109885,1.98694,24.2,24.17,19.44]
[1673855110086,20.0,24.201,24.17,19.44]
[1673855110614,20.0,24.199,24.17,19.44]
[1673855110835,20.0,24.199,24.163,0.11235245]
[1673855111046,20.0,24.189,24.163,0.11235245]
[1673855111265,38.98694,24.188,24.163,0.11235245]
[1673855111469,21.98694,24.187,24.163,0.11235245]
[1673855111683,21.98694,24.186,24.163,0.11235245]
[1673855111893,19.44,24.18,24.163,0.11235245]
[1673855112081,1.98694,24.179,24.163,0.11235245]
[1673855112294,20.0,24.178,24.163,0.11235245]
[1673855112516,1.98694,24.177,24.163,0.11235245]
[1673855112729,82.74603762,24.177,24.163,0.11235245]
[1673855112944,51.15260269,24.176,24.163,0.11235245]
[1673855113152,20.0,24.174,24.14,19.5]
[1673855113360,21.98694,24.173,24.13,19.44]
[1673855113674,20.0,24.171,24.154,5.5e-05]
[1673855113882,12.7083284,24.176,24.154,5.5e-05]
[1673855114097,108.7605,24.206,24.154,5.5e-05]
[1673855114098,46.33049493,24.172,24.171,20.0]
[1673855114295,108.7605,24.206,24.171,20.0]
[1673855114296,108.7605,24.206,24.171,22.00186]
[1673855114504,108.7605,24.206,24.19,19.39]
[1673855114716,20.0,24.205,24.172,2.00178]
[1673855114935,20.0,24.205,24.173,17.0]
[1673855115138,20.0,24.205,24.174,20.0]
[1673855115355,20.0,24.229,24.19,19.44]
[1673855115869,20.0,24.229,24.191,119.32735756]
[1673855116079,115.7015,24.228,24.192,20.0]
[1673855116287,20.0,24.227,24.193,17.0]
[1673855116711,20.0,24.227,24.194,20.0]
[1673855116919,20.0,24.227,24.195,17.0]
[1673855117340,20.0,24.227,24.2,19.27]
[1673855117545,20.0,24.227,24.201,17.0]
[1673855117759,20.0,24.227,24.201,58.38074805]
[1673855117982,20.0,24.227,24.202,41.38074805]
[1673855118196,20.0,24.227,24.203,17.0]
[1673855118508,20.0,24.227,24.204,41.38074805]
[1673855118720,20.0,24.227,24.205,17.0]
[1673855118932,20.0,24.227,24.205,43.89870574]
[1673855119142,20.0,24.227,24.206,40.56281405]
[1673855119335,20.0,24.229,24.206,40.56281405]
[1673855119336,20.0,24.229,24.207,17.0]
[1673855119543,20.0,24.229,24.21,19.43]
[1673855119763,20.0,24.229,24.211,17.0]
[1673855119972,20.0,24.242,24.212,20.0]
[1673855120186,20.0,24.242,24.213,17.0]
[1673855120400,20.0,24.242,24.214,20.0]
[1673855120614,20.0,24.242,24.215,17.0]
[1673855120805,20.0,24.242,24.214,41.70705672]
[1673855121016,20.0,24.242,24.215,17.0]
[1673855121236,20.0,24.242,24.213,17.0]
[1673855121429,20.0,24.242,24.21,30.19707917]
[1673855121640,20.0,24.237,24.19,19.44]
[1673855122072,20.0,24.235,24.193,20.0]
[1673855122400,20.0,24.235,24.21,19.44]
[1673855123136,20.0,24.235,24.2,77.51]
[1673855123137,20.0,24.235,24.2,19.25]
[1673855123328,61.36511385,24.234,24.2,19.25]
[1673855123543,20.0,24.233,24.2,19.25]
[1673855123753,137.3057,24.232,24.2,19.25]
[1673855123978,20.0,24.231,24.2,19.25]
[1673855124816,20.0,24.231,24.2,30.01707917]
[1673855125230,20.0,24.231,24.201,20.0]
[1673855125443,20.0,24.231,24.21,19.43]
[1673855125646,20.0,24.231,24.211,17.0]
[1673855126585,117.3057,24.232,24.212,20.0]
[1673855126799,117.3057,24.232,24.213,17.0]
[1673855127011,117.3057,24.232,24.213,27.76707917]
[1673855127340,20.0,24.25,24.213,27.76707917]
[1673855127558,20.0,24.25,24.22,19.44]
[1673855127751,20.0,24.244,24.221,17.0]
[1673855128170,41.46196354,24.244,24.221,17.0]
[1673855128384,20.0,24.244,24.221,17.0]